Workbook

Sheet ISF sheet
A1: cfly{s jif{ | B1: /sd ;+sng | D1: cfly{s jif{ | E1: /sd ;+sng
A2: 2062/63 | B2: 251000 | D2: 2062/63 | E2: 25100
A3: 2063/64 | B3: 386201 | D3: 2063/64 | E3: 386201
A4: 2064/65 | B4: 291200 | D4: 2064/65 | E4: 291200
A5: 2065/66 | B5: 656543 | D5: 2065/66 | E5: 656543
A6: 2066/67 | B6: 169999 | D6: 2066/67 | E6: 169999
A7: 2067/68 | B7: 436663 | D7: 2067/68 | E7: 436663
A8: 2068/69 | B8: 373500 | D8: 2068/69 | E8: 373500
A9: 2069/70 | B9: 675000 | D9: 2064/70 | E9: 675000
A10: 2070/71 | B10: 724000 | D10: 2070/71 | E10: 724000
A11: 2071/72 | B11: 1152000 | D11: 2071/72 | E11: 1152000
A12: 2072/73 | B12: 1342687 | D12: 2072/73 | E12: 1342687
A13: 2073/74 | B13: 1651804 | D13: 2073/74 | E13: 1651804
A14: 2074/75 | B14: 1720000 | D14: 2074/75 | E14: 1720000
A15: 2075/76 | B15: 1759923 | D15: 2075/76 | E15: 1759923
A16: 2076/77 | B16: 1414618 | D16: 2076/77 | E16: 1414618
A17: 2077/78 | B17: 1468050 | D17: 2077/78 | E17: 1468050
A18: 2078/79 | B18: 1138623 | D18: 2078/79 | E18: 1138623
A19: 2079/80 | B19: 908312 | D19: 2079/80 | E19: 908312
A20: 2080/81 | B20: ='Five Year'!H29 -> 2320449 | D20: 2080/81 | E20: 2320449

Sheet Five Year
A1: Kankai Nahar Jal Upabhokta Sanstha
A2: Sivasatakshi-5, Jhapa
A3: FY 2075/76 to 2079/80
A5: SN | B5: Canal | C5: 2075/76 | D5: 2076/77 | E5: 2077/78 | F5: 2078/79 | G5: 2079/80 | H5: 2080/81 | I5: Remarks
A6: 1 | B6: Main | C6: 8723 | D6: 735 | E6: 37318 | F6: 60247 | G6: 4315
A7: 2 | B7: S0 | C7: 132520 | D7: 67216 | E7: 138400 | F7: 65165 | G7: 141675 | H7: 139091
A8: 3 | B8: S1 | C8: 316605 | D8: 151519 | E8: 282720 | F8: 138587 | G8: 128317 | H8: 261461
A9: 4 | B9: S2 | C9: 104146 | D9: 69898 | E9: 160779 | F9: 70174 | G9: 35717 | H9: 220859
A10: 5 | B10: S3 | C10: 99040 | D10: 89998.25 | E10: 95924 | F10: 60072 | G10: 68198 | H10: 103555
A11: 6 | B11: S4 | C11: 145746 | D11: 132427.5 | E11: 148447 | F11: 86479 | G11: 87217 | H11: 174602
A12: 7 | B12: S5 | C12: 29185 | D12: 74555 | E12: 43575 | F12: 25030 | G12: 0 | H12: 55818
A13: 8 | B13: S6 | C13: 32345 | D13: 24553 | E13: 30181 | F13: 25562 | G13: 0 | H13: 45615
A14: 9 | B14: S7 | C14: 29769 | D14: 15507 | E14: 14930 | F14: 27108 | G14: 0 | H14: 32960
A15: 10 | B15: S8 | C15: 38557 | D15: 37965 | E15: 43105 | F15: 34165 | G15: 25530 | H15: 73860
A16: 11 | B16: S9 | C16: 89919 | D16: 46717 | E16: 51580 | F16: 25577 | G16: 21415 | H16: 94470
A17: 12 | B17: S10 | C17: 69771 | D17: 58749 | E17: 68198 | F17: 45518 | G17: 9126 | H17: 121315
A18: 13 | B18: S11 | C18: 50050 | D18: 35366 | E18: 39502 | F18: 26412 | G18: 24408 | H18: 48292
A19: 14 | B19: S12 | C19: 24460 | D19: 18982 | E19: 23585 | F19: 16500 | G19: 0 | H19: 25570
A20: 15 | B20: S13 | C20: 243597 | D20: 367836 | E20: 175362 | F20: 318064 | G20: 213976 | H20: 335825
A21: 16 | B21: S14 | C21: 82650 | D21: 85543 | E21: 41943 | F21: 42846 | G21: 49995 | H21: 170650
A22: 17 | B22: S15 | C22: 100063 | D22: 91910 | E22: 49408 | F22: 38172 | G22: 25790 | H22: 102750
A23: 18 | B23: S16 | C23: 37655 | D23: 23610 | E23: 67430 | F23: 24715 | G23: 17553 | H23: 93735
A24: 19 | B24: S17 | C24: 30474 | D24: 17760 | E24: 23526 | F24: 29217 | G24: 35730 | H24: 100468
A25: 20 | B25: S18 | C25: 55426 | D25: 0 | E25: 23880 | F25: 10460 | G25: 0 | H25: 41825
A26: 21 | B26: S19 | C26: 0 | D26: 3835 | E26: 10065 | F26: 7200 | G26: 6735 | H26: 17510
A27: 22 | B27: S20 | C27: 11915 | D27: 0 | E27: 35180 | F27: 14355 | G27: 12615 | H27: 42716
A28: 23 | B28: S21 | C28: 18600 | D28: 0 | E28: 12145 | F28: 7245 | G28: 0 | H28: 17502
B29: Total | C29: =SUM(C6:C28) -> 1751216 | D29: =SUM(D6:D28) -> 1414681.75 | E29: 1617183 | F29: 1198870 | G29: 908312 | H29: =SUM(H6:H28) -> 2320449

Sheet Targeted ISF
A1: Kankai Nahar Jal Upabhokta Sanstha
A2: Sivasatakshi-5, Jhapa
A3: FY 2080/81
F4: Rate per bigh is Rs 500
A5: SN | B5: Canal | C5: Previous Area | D5: Updated Irrigable Area | F5: Targeted Amount to be collected | G5: Remarks
C6: Hectare | D6: Hectare | E6: Bigha
A7: 1 | B7: S0 | C7: 268 | D7: 319.18 | E7: =D7*1.48 -> 472.3864 | F7: =E7*500 -> 236193.2
A8: 2 | B8: S1 | C8: 523 | D8: 594.61 | E8: =D8*1.48 -> 880.0228 | F8: =E8*500 -> 440011.4
A9: 3 | B9: S2 | C9: 364 | D9: 477.2 | E9: 706.256 | F9: 353128
A10: 4 | B10: S3 | C10: 350 | D10: 423.87 | E10: 627.3276 | F10: 313663.8
A11: 5 | B11: S4 | C11: 460 | D11: 537.63 | E11: 795.6924 | F11: 397846.2
A12: 6 | B12: S5 | C12: 258 | D12: 371.17 | E12: 549.3316 | F12: 274665.8
A13: 7 | B13: S6 | C13: 130 | D13: 156.98 | E13: 232.3304 | F13: 116165.2
A14: 8 | B14: S7 | C14: 154 | D14: 263.66 | E14: 390.2168 | F14: 195108.4
A15: 9 | B15: S8 | C15: 292 | D15: 467.32 | E15: 691.6336 | F15: 345816.8
A16: 10 | B16: S9 | C16: 403 | D16: 462.28 | E16: 684.1744 | F16: 342087.2
A17: 11 | B17: S10 | C17: 186 | D17: 310.19 | E17: 459.0812 | F17: 229540.6
A18: 12 | B18: S11 | C18: 157 | D18: 145.32 | E18: 215.0736 | F18: 107536.8
A19: 13 | B19: S12 | C19: 265 | D19: 407.08 | E19: 602.4784 | F19: 301239.2
A20: 14 | B20: S13 | C20: 711 | D20: 740.1 | E20: 1095.348 | F20: 547674
A21: 15 | B21: S14 | C21: 417 | D21: 670.41 | E21: 992.2068 | F21: 496103.4
A22: 16 | B22: S15 | C22: 528 | D22: 577.37 | E22: 854.5076 | F22: 427253.8
A23: 17 | B23: S16 | C23: 529 | D23: 594.23 | E23: 879.4604 | F23: 439730.2
A24: 18 | B24: S17 | C24: 343 | D24: 416.66 | E24: 616.6568 | F24: 308328.4
A25: 19 | B25: S18 | C25: 112 | D25: 258.35 | E25: 382.358 | F25: 191179
A26: 20 | B26: S19 | C26: 158 | D26: 213.19 | E26: 315.5212 | F26: 157760.6
A27: 21 | B27: S20 | C27: 179 | D27: 332.49 | E27: 492.0852 | F27: 246042.6
A28: 22 | B28: S21 | C28: 163 | D28: 211.68 | E28: 313.2864 | F28: 156643.2
B29: Total | C29: =SUM(C7:C28) -> 6950 | D29: =SUM(D7:D28) -> 8950.97 | E29: =SUM(E7:E28) -> 13247.4356 | F29: =SUM(F7:F28) -> 6623717.8
